Cogmind - Beta 16 @@@ ROGUE MODE // 2025.10.24 @ 08:44:45 Player: H3-MLN Result: Destroyed by D-53 Grenadier with Mini Grenade Launcher Performance ------------- Evolutions (0) 0 Regions Visited (2) 400 Robots Destroyed (17) 85 Value Destroyed (375) 375 Prototype IDs (2) 40 Alien Tech Used (0) 0 Bonus (0) 0 TOTAL SCORE: 900 Bonus ------- None Cogmind --------- Core Integrity 0/250 Matter 254/300 Energy 79/100 System Corruption 0% Temperature Cool (0) Movement Core (400) Ox7 Location -10/Mines Parts ------- > --- POWER (1) -------- (None) > --- PROPULSION (2) --- (None) > --- UTILITY (2) ------ Large Storage Unit > --- WEAPON (2) ------- Assault Rifle Light Assault Rifle > --- INVENTORY (15) --- Light Ion Engine Wheel Wheel High-capacity Matter Pod (89) EM Pulse Gun Light Assault Rifle Grenade Launcher Mining Laser Peak State ------------ > --- POWER ------------ Ion Engine > --- PROPULSION ------- Light Treads Compact Wheel > --- UTILITY ---------- Large Storage Unit Light Armor Plating > --- WEAPON ----------- Assault Rifle Subdweller Machine Gun > --- INVENTORY -------- Ion Engine Light Ion Engine Light Treads Wheel Wheel High-capacity Matter Pod Structural Scanner EM Pulse Gun EM Pulse Gun Assault Rifle Assault Rifle Light Assault Rifle Light Assault Rifle Grenade Launcher [Rating: 9] Favorites ----------- Power Ion Engine Engine Ion Engine Propulsion Compact Wheel Treads Light Treads Wheel Compact Wheel Utility Medium Storage Unit Device Seismic Detector Storage Medium Storage Unit Protection Light Armor Plating Weapon Light Assault Rifle Energy Gun Small Laser Ballistic Gun Light Assault Rifle Launcher Grenade Launcher Build | -11 -10 -10 ------- Run | Yrd Mat Min Slots Evolved . | . . . Power . | . . . Propulsion . | . . . Utility . | . . . Weapon . | . . . Parts Attached 22 | 8 8 6 Power 2 | 1 . 1 Engine 2 | 1 . 1 Core . | . . . Reactor . | . . . Propulsion 4 | 3 . 1 Treads 2 | 1 . 1 Leg . | . . . Wheel 2 | 2 . . Hover . | . . . Flight . | . . . Utility 6 | 2 3 1 Device 2 | 1 . 1 Storage 3 | 1 2 . Processor . | . . . Hackware . | . . . Protection 1 | . 1 . Artifact . | . . . Weapon 10 | 2 5 3 Energy Gun 3 | 2 . 1 Energy Cannon . | . . . Ballistic Gun 6 | . 4 2 Ballistic Cannon . | . . . Launcher 1 | . 1 . Special Weapon . | . . . Impact Weapon . | . . . Slashing Weapon . | . . . Piercing Weapon . | . . . Special Melee Weapon . | . . . Unidentified Prototypes . | . . . Parts Lost 11 | . 1 10 Power 2 | . . 2 Propulsion 3 | . . 3 Utility 2 | . 1 1 Weapon 4 | . . 4 Highest Loss Streak 10 | . 1 10 To Critical Strikes . | . . . Average Backups 10 | 2 10 13 Power 1 | . 1 1 Propulsion 2 | 1 3 2 Utility 1 | . 1 1 Weapon 4 | . 4 7 Tool/Special . | . . . Unused Backups 9 | . 4 5 Power 1 | . . 1 Propulsion 2 | . 1 1 Utility 1 | . . 1 Weapon 5 | . 3 2 Tool/Special . | . . . Average Slot Usage (%) 98 | . 99 90 Engine 13 | . 14 11 Treads 14 | . 14 14 Wheel 14 | . 14 14 Device 6 | . 6 9 Storage 14 | . 14 14 Protection 6 | . 7 . Energy Gun 6 | . 7 . Ballistic Gun 20 | . 19 25 Peak Build Rating 9 | 7 9 9 Average Rating 7 | 5 7 8 On Entrance 5 | . 7 8 Avg Prop Armor Cover (%) 12 | 14 12 12 Naked Turns . | . . . Heaviest Build 34 | 14 34 32 Greatest Support 26 | 26 16 16 Greatest Overweight (x) 2 | . 2 1 Average Overweight (x) . | . . 1 Largest Inventory Capacity 15 | 8 15 15 Average Capacity 11 | 6 11 15 Most Carried 15 | 6 15 15 Average Carried 10 | 2 10 13 Final Capacity 15 | 8 15 15 Final Carried 15 | 6 15 8 Class Distribution -------------------- 100% | Mutant Dominant Class ---------------- Mutant | -10/Materials Mutant | -10/Mines Resources | -11 -10 -10 ----------- Run | Yrd Mat Min Matter Collected 606 | 269 244 93 Remotely . | . . . Salvage Created 439 | 98 278 63 Parts 34 | 4 24 6 Haulers Intercepted . | . . . Recyclers Shooed . | . . . Parts Field Recycled . | . . . Retrieved Matter . | . . . Parts Self-Destructed . | . . . Prevented . | . . . Parts Restored . | . . . Kills | -11 -10 -10 ------- Run | Yrd Mat Min Combat Hostiles Destroyed 12 | . 11 1 Guns 9 | . 8 1 AOE 3 | . 3 . Classes Destroyed 8 | 2 4 2 Worker 1 | . . 1 Tunneler 2 | 1 1 . Recycler 1 | 1 . . Watcher 1 | . 1 . Swarmer 5 | . 5 . Grunt 3 | . 3 . Demolisher 1 | . . 1 Subdweller 3 | . 3 . Best Kill Streak 3 | 2 3 1 Combat Bots Only 3 | . 3 1 Max Kills in Single Turn 1 | 1 1 1 Gunslinging . | . . . Exploded 1 | . 1 . Melee . | . . . Uniques/NPCs Destroyed . | . . . Combat | -11 -10 -10 -------- Run | Yrd Mat Min Hostile Shots Fired 58 | . 35 23 Missed 16 | . 15 1 Hits 42 | . 20 22 Projectile 42 | . 20 22 AOE 23 | . . 23 Damage Taken 1250 | . 252 998 Core 258 | . 35 223 Absorbed by Shields . | . . . Core Remaining (%) 100 | 100 . . Volleys Fired 56 | 4 44 8 Largest 2 | 2 2 2 Hottest 90 | 90 90 70 Shots Fired 104 | 7 82 15 Gun 98 | 7 76 15 Cannon . | . . . Launcher 6 | . 6 . Special . | . . . Kinetic 77 | . 64 13 Thermal 19 | 7 12 . Explosive 6 | . 6 . Electromagnetic 2 | . . 2 Robot Hit Streak 7 | 3 7 3 Robot Miss Streak 5 | 1 5 4 Penetration Max . | . . . Secondary Targets 1 | . 1 . Max Gunslinging Chain 1 | . 1 . Shots Hit Robots 64 | 5 51 8 Core Hits 29 | 3 21 5 Critical Kills . | . . . Critical Parts Destroyed 1 | . 1 . Critical Strikes 4 | 2 2 . Burn 3 | 2 1 . Destroy 1 | . 1 . Melee Attacks . | . . . Impact . | . . . Slashing . | . . . Piercing . | . . . Sneak Attacks . | . . . Combat Hostiles . | . . . Follow-up Attacks . | . . . Damage Inflicted 1128 | 70 964 94 Guns 644 | 70 480 94 Cannons . | . . . Explosions 484 | . 484 . Melee . | . . . Ramming . | . . . Kinetic 465 | . 383 82 Thermal 167 | 70 97 . Explosive 484 | . 484 . Electromagnetic 12 | . . 12 Impact . | . . . Slashing . | . . . Piercing . | . . . Highest Corruption . | . . . Average Corruption . | . . . Corruption Purged . | . . . Corruption Blocked . | . . . Overload Shots . | . . . Overflow Damage . | . . . Projectiles . | . . . Explosions . | . . . Melee . | . . . Knockbacks . | . . . Impact . | . . . Kinetic . | . . . Secondary . | . . . Self-Inflicted Damage . | . . . Shots . | . . . Rammed . | . . . Targets Rammed . | . . . Kicked . | . . . Crushed . | . . . Highest Temperature 70 | 70 60 . Average Temperature 17 | 33 14 . Received Heat Transfer 66 | . 66 . Siege Activations . | . . . Martial Activations . | . . . Shielding Activations . | . . . Robots Disrupted . | . . . Combat Hostiles . | . . . Robots Corrupted . | . . . Combat Hostiles . | . . . Parts Fried . | . . . Impact Corruptions . | . . . Robots Melted . | . . . Combat Hostiles . | . . . Parts Melted 1 | 1 . . Heat Transferred 668 | 346 322 . Parts Sabotaged . | . . . Parts Stolen . | . . . Parts Stripped . | . . . Power Chain Reactions . | . . . Alert | -11 -10 -10 ------- Run | Yrd Mat Min Maximum Alert Level . | . . . Low Security (%) 100 | 100 100 100 Level 1 . | . . . Level 2 . | . . . Level 3 . | . . . Level 4 . | . . . Level 5 . | . . . High Security . | . . . Max Security . | . . . Peak Influence 76 | 10 76 16 Initial 16 | . . 16 Average 19 | . 23 4 Influence Increases 320 | 10 285 25 Destroy 0b10 Robot/C 180 | . 160 20 Destroy 0b10 Robot/NC 25 | 10 10 5 Destroy Leader 42 | . 42 . Successful Hack 19 | . 19 . Select Force Hacks 30 | . 30 . Destroy Structure 9 | . 9 . Lose Combat Pursuer 15 | . 15 . Influence Decreases 300 | 10 243 47 Entered New Map 26 | . . 26 Time Decay 274 | 10 243 21 Squads Dispatched 2 | . 2 . Investigation 2 | . 2 . Extermination . | . . . Reinforcement . | . . . Assault . | . . . Garrison . | . . . Intercept . | . . . Searches Triggered . | . . . Construction Impeded . | . . . Haulers Reinforced . | . . . Active Scanning Responses . | . . . Cargo Convoy Interrupts . | . . . Stealth | -11 -10 -10 --------- Run | Yrd Mat Min Distress Signals 2 | . 2 . Communications Jammed . | . . . Distress Signals . | . . . Times Spotted 23 | . 17 6 Peak Tracking Total 6 | . 4 6 Tactical Retreats 1 | . 1 . Traps | -11 -10 -10 ------- Run | Yrd Mat Min Traps Triggered 1 | . 1 . Indirectly . | . . . Trap Hack Attempts . | . . . Triggered . | . . . Disarmed . | . . . Reprogrammed . | . . . Reused . | . . . Traps Extracted . | . . . Installed . | . . . Triggered . | . . . Machines | -11 -10 -10 ---------- Run | Yrd Mat Min Machines Disabled . | . . . Max in Single Turn . | . . . Machines Repaired . | . . . Machines Dismantled . | . . . Machines Sabotaged . | . . . Overloaded Fab Kills . | . . . Hacking | -11 -10 -10 --------- Run | Yrd Mat Min Machines Accessed 7 | . 7 . Terminals 6 | . 6 . Fabricators . | . . . Repair Stations . | . . . Recycling Units 1 | . 1 . Scanalyzers . | . . . Garrison Access . | . . . Total Hacks 23 | . 23 . Successful 10 | . 10 . Failed 12 | . 12 . Catastrophic 4 | . 4 . Database Lockouts 1 | . 1 . Manual 17 | . 17 . Terminals 21 | . 21 . Fabricators . | . . . Repair Stations . | . . . Recycling Units 2 | . 2 . Scanalyzers . | . . . Garrison Access . | . . . Terminal Hacks 5 | . 5 . Part Schematic 1 | . 1 . Robot Schematic 1 | . 1 . Robot Analysis 1 | . 1 . Prototype ID Bank 1 | . 1 . Zone Layout 1 | . 1 . Fabricator Hacks . | . . . Repair Station Hacks . | . . . Recycling Unit Hacks 1 | . 1 . Report Inventory 1 | . 1 . Scanalyzer . | . . . Garrison Access Hacks . | . . . Unauthorized Hacks 4 | . 4 . Terminals 3 | . 3 . Track 2 | . 2 . Botnet 1 | . 1 . Fabricators . | . . . Repair Stations . | . . . Recycling Units 1 | . 1 . Tunnel 1 | . 1 . Scanalyzers . | . . . Garrison Access . | . . . Data Cores Recovered . | . . . Used . | . . . Hacking Detections 6 | . 6 . Full Trace Events 1 | . 1 . Feedback Events . | . . . Feedback Blocked . | . . . Robot Schematics Acquired 1 | . 1 . Robots Built . | . . . Authchips . | . . . Time . | . . . Total Robot Build Rating . | . . . Part Schematics Acquired 1 | . 1 . Parts Built . | . . . Authchips . | . . . Time . | . . . Total Part Build Rating . | . . . Part Studies Acquired . | . . . Parts Repaired . | . . . Time . | . . . Parts Recycled . | . . . Recycled Matter . | . . . Retrieved Matter . | . . . Retrieved Components . | . . . Parts Scanalyzed . | . . . Part Schematics Acquired . | . . . Parts Damaged . | . . . Bothacking | -11 -10 -10 ------------ Run | Yrd Mat Min Used RIF Installer . | . . . Robots Hacked . | . . . Non-combat . | . . . Combat . | . . . Robot Hacks Applied . | . . . Relay Couplers Released . | . . . Fabnet Peak Effective % . | . . . Robots Rewired . | . . . Allies Hacked . | . . . Hacks Repelled . | . . . Allies | -11 -10 -10 -------- Run | Yrd Mat Min Total Allies . | . . . Largest Group . | . . . Highest-Rated Group . | . . . Highest-Rated Ally . | . . . Total Orders . | . . . Ally Attacks . | . . . Total Damage . | . . . Kills . | . . . Allies Corrupted . | . . . Allies Melted . | . . . Intel | -11 -10 -10 ------- Run | Yrd Mat Min Active Infowar (turns) 455 | 16 353 86 Structural 86 | . . 86 Seismic 369 | 16 353 . Robot Analysis Total 1 | . 1 . Derelict Logs Recovered 1 | . . 1 Drone Launches . | . . . Drone Recoveries . | . . . Exploration | -11 -10 -10 ------------- Run | Yrd Mat Min Turns Passed 988 | 77 796 115 Spaces Moved 665 | 54 536 75 Core 5 | 5 . . Treads . | . . . Legs . | . . . Wheels 660 | 49 536 75 Hover . | . . . Flight . | . . . Fastest Speed 50 | 50 100 115 Average Speed 112 | 89 113 115 Slowest Speed 130 | 100 130 115 Overloaded Moves . | . . . Propulsion Burnouts . | . . . Robots Hopped . | . . . Potential Cave-ins . | . . . Cave-ins Triggered . | . . . Exploration Rate (%) 39 | 4 89 24 Regions Visited 2 Branch Regions 1 Pre-discovered Areas 2 | . 1 1 Known Exits Taken . | . . . Unknown Exits Taken 2 | 1 1 . Scrap Searched 1 | . . 1 Spaces Dug 4 | . 4 . Terrain Destroyed 8 | . 8 . Melee . | . . . Projectile . | . . . AOE 8 | . 8 . Terrain Rammed . | . . . Walls Destroyed . | . . . Machines Disabled . | . . . Actions | -11 -10 -10 --------- Run | Yrd Mat Min Total 814 | 71 652 91 Wait 42 | . 42 . Move 663 | 53 535 75 Hop . | . . . Pick Up 19 | 6 13 . Fast Attach 10 | 7 3 . Attach 7 | . . 7 Detach . | . . . Swap 7 | 1 5 1 Drop 10 | . 10 . Fire 56 | 4 44 8 Melee . | . . . Ram . | . . . Kick . | . . . Crush . | . . . Escape Stasis . | . . . Rewire . | . . . Trap . | . . . Miscellaneous . | . . . Route ------- -11/Scrapyard -10/Materials (discovered 6 exits: [*Mat x3] / [*Min x2] / [*Sub]) -10/Mines (discovered 1 exit: [*Mat]) History --------- Turn | Location | Event 3 | -11/Scrapyard | Discovered new exit (range 16) 78 | -11/Scrapyard | Entered Materials 157 | -10/Materials | Discovered new exit (range 14) 240 | -10/Materials | Central database locked down 249 | -10/Materials | Discovered new exit (range 13) 268 | -10/Materials | Discovered new exit (range 16) 313 | -10/Materials | Build established: Mutant 331 | -10/Materials | Discovered new exit (range 15) 612 | -10/Materials | Discovered new exit (range 5) 678 | -10/Materials | Derelicts attacked the area 821 | -10/Materials | Discovered new exit (range 9) 874 | -10/Materials | Entered Mines 907 | -10/Mines | Discovered new exit (range 16) 930 | -10/Mines | Learned location of Zion (-6) 946 | -10/Mines | Assembled infested the area 951 | -10/Mines | Assisted by a Guerilla fighting off Assembled 982 | -10/Mines | Core integrity fell below 50% 986 | -10/Mines | Core integrity fell below 20% 989 | -10/Mines | Destroyed by D-53 Grenadier with Mini Grenade Launcher Last Messages --------------- 00968_ Ion Engine destroyed. 00969_ U-05 Engineer lays Concrete. 00972_ Lgt. Treads destroyed. 00972_ Sub. Machine Gun destroyed. 00974_ The unstable cave ceiling collapses. 00974_ U-05 Engineer builds a Wall. 00974_ Assault Rifle destroyed. 00977_ Ion Engine destroyed. 00977_ Structural Scanner destroyed. 00977_ U-05 Engineer destroyed. 00979_ U-05 Engineer lays Concrete. 00979_ Assault Rifle destroyed. 00980_ U-05 Engineer lays Concrete. 00983_ T-07 Excavator destroyed. 00983_ Com. Wheel destroyed. 00984_ U-05 Engineer lays Concrete. 00985_ U-05 Engineer destroyed. 00987_ The unstable cave ceiling collapses. 00987_ Lgt. Treads destroyed. 00989_ D-53 Grenadier destroyed. Map ----- +----------------------------------------------------+ | ?????????????????????????????????????????????????? | | ?????????????????????????????????????????????????? | | ?????????????????????????????????????????????????? | | ?????????????????????????????????????????????????? | | ?????????###### #????????????????????????????????? | | ??????######### #????????????????????????????????? | | ??????? * #????????????????????????????????? | | ?????????## =##??????????????????????????????????? | | ?????????## ##??????????????????????????????????? | | ?????????## ##??????????????????????????????????? | | ?????????## ##?????? # ?????????????????????????? | | ??????##### #### ?? # ?????????????????????????? | | ??????##### ######??## ?????????????????????????? | | ??????## ##??## ?????????????????????????? | | ?####### ##??## ?????????????????????????? | | ?####### ##??## #####????????????????????? | | ?## ! = ##?### ######???????????????????? | | ?## ### """ """ ###### ####??????????????????? | | ?## ### """ """ ##### ###??????????????????? | | ?## ### """ """ ### ###?????????????????? | | ?## ### ## ####????????????????? | | ?## ############# ###????????????????? | | ?## ############# ##????????????????? | | ?## ##???????### ##????????????????? | | ### ###??????## ###? ###????????? | | ### ###??????## @ ## ###???????? | | ## ###?????## ## a %| ##???????? | | ######### ?### a a## ###???????? | | #########???### ### ####?###????????? | | ##???### #### ###?????????????? | | ##????##] ###??????????????????? | | ##### ##????##%* ##???????????????????? | | # ##### ##???###!! ###???????????????????? | | # ##?## ##??####d ###???????????????????? | | < ##?## ##??### ###????????????????????? | | ###### ##?### ####????????????????????? | | # # ###### ######k ####?????????????????????? | | # ### ##### ##### ####??????????????????????? | | # ### #### ### ####???????????????????????? | | # #####????????????????????????? | | ##### #####?????????????????????????? | | ########## #########???????????????????????????? | | ???####### #########????????????????????????????? | | ????????### ###??????????????????????????????????? | | ????????######???????????????????????????????????? | | ?????????#####???????????????????????????????????? | | ?????????????????????????????????????????????????? | | ?????????????????????????????????????????????????? | | ?????????????????????????????????????????????????? | | ?????????????????????????????????????????????????? | +----------------------------------------------------+ Best States ------------- Heat Dissipation 25 Energy Generation 10 Energy Capacity 250 Matter Stores 300 Matter Capacity 300 Sight Range 16 Terrain Scan Density 10 Armor Coverage 150 Evasion (%) 42 Recoil Reduction 1 Item Schematics ----------------- Hcp. Storage Unit | -10/Materials | Hacked Robot Schematics ------------------ M-13 Machinist | -10/Materials | Hacked Fabricated ------------ Nothing Repaired ---------- Nothing Studied --------- None Alien Tech Used ----------------- None Achievements -------------- None Challenges ------------ None Game ------ Seed ScrapOpticalBay Manual? 0 Play Time 00:09:34 Cumulative 982.4 hours Start 2025.10.24 @ 08:36:31 End 2025.10.24 @ 08:44:45 Sessions 1 Manual Loads 0 Difficulty Rogue Special Mode None Game No. 360 Rogue 355 Adventurer 4 Explorer 1 Win Type - Total 19 Types 13/1/1/1/0/1/0/0/1/1 Lore% 96 Gallery% 92 Achievement% 76 Wizard Run 0 Options --------- Layout 2 ASCII 0 Keyboard 0 Movement Numpad Keybinds 0 Fullscreen 2 Font 24/Smallcaps Map View 50x44 Zoom Use 0% Tactical HUD 1 Map Filters NONE Filters NONE Steam 1 RUN: e456d402-092c-4495-944b-e965146b7c8f